bitfinex/quotes_ETHUSD_20250520
["timestamp","ask_amount","ask_price","bid_price","bid_amount"]
[1747716788655,0.02,2570.9,2570.6,2.01133629]
[1747716788656,3.90973594,2570.9,2570.6,2.01133629]
[1747716788829,3.88999105,2570.7,2570.6,2.01133629]
[1747716789030,3.88988626,2570.8,2570.6,47.47876529]
[1747716789228,0.02,2570.9,2570.8,8.0]
[1747716789556,0.02,2570.9,2570.8,22.189807]
[1747716789957,0.02,2570.9,2570.8,23.002207]
[1747716790317,0.02,2570.9,2570.8,8.8124]
[1747716790518,0.02,2570.9,2570.8,53.15226409]
[1747716790730,0.7849,2571.9,2570.9,0.815]
[1747716790929,3.88953714,2571.0,2570.9,0.815]
[1747716791130,3.88953714,2571.0,2570.9,38.642988]
[1747716791628,3.88953714,2571.0,2570.9,10.48647809]
[1747716791831,3.88953714,2571.0,2570.9,40.81747809]
[1747716792041,3.88953714,2571.0,2570.9,44.71984097]
[1747716792240,3.88953714,2571.0,2570.9,31.18184097]
[1747716792448,3.88953714,2571.0,2570.9,44.71884097]
[1747716793165,3.88953714,2571.0,2570.9,44.71784097]
[1747716793655,3.88953714,2571.0,2570.9,31.18184097]
[1747716793815,3.88953714,2571.0,2570.9,24.86309009]
[1747716794013,3.88953714,2571.0,2570.9,0.36409009]
[1747716794218,4.63973714,2571.0,2570.9,24.86109009]
[1747716794439,4.63973714,2571.0,2570.9,17.15509009]
[1747716794659,4.63973714,2571.0,2570.9,24.86109009]
[1747716795017,4.63973714,2571.0,2570.9,17.15509009]
[1747716795433,4.71894506,2570.4,2570.3,0.45484101]
[1747716795664,4.71894506,2570.4,2570.3,24.95184101]
[1747716796048,4.71894506,2570.4,2570.3,17.24584101]
[1747716796235,4.71894506,2570.4,2570.3,24.95184101]
[1747716797361,4.71894506,2570.4,2570.3,17.24584101]
[1747716797637,4.71894506,2570.4,2570.3,24.95184101]
[1747716797969,4.71894506,2570.4,2570.3,17.24584101]
[1747716798172,4.71894506,2570.4,2570.3,24.95184101]
[1747716798374,4.71894506,2570.4,2570.3,24.497]
[1747716800039,3.89059642,2570.3,2569.5,0.45484101]
[1747716800370,3.89059642,2570.3,2569.6,32.519]
[1747716800371,3.89150484,2569.7,2569.6,32.519]
[1747716800571,3.89150484,2569.7,2569.6,37.424763]
[1747716800776,3.89150484,2569.7,2569.6,38.24409722]
[1747716803872,3.89150484,2569.7,2569.6,45.78925621]
[1747716804080,3.89150484,2569.7,2569.6,49.69161909]
[1747716805358,3.89150484,2569.7,2569.6,46.40637209]
[1747716806778,3.89150484,2569.7,2569.6,36.78585609]
[1747716806946,3.89150484,2569.7,2569.6,46.21288509]
[1747716807348,3.89150484,2569.7,2569.6,47.02838509]
[1747716808487,3.89150484,2569.7,2569.6,50.02838509]
[1747716808948,3.89150484,2569.7,2569.6,49.14826521]
[1747716809148,3.89150484,2569.7,2569.6,46.14826521]
[1747716809358,3.89150484,2569.7,2569.6,40.31726521]
[1747716809553,3.89150484,2569.7,2569.6,32.59026521]
[1747716809780,3.89150484,2569.7,2569.6,40.31726521]
[1747716810745,3.89150484,2569.7,2569.6,24.88449321]
[1747716811085,3.89150484,2569.7,2569.6,24.88749321]
[1747716811885,3.89150484,2569.7,2569.6,16.796]
[1747716812042,3.89150484,2569.7,2569.6,24.523]
[1747716812889,3.89150484,2569.7,2569.6,16.796]
[1747716813197,3.89150484,2569.7,2569.6,24.523]
[1747716814679,3.89150484,2569.7,2569.6,24.524]
[1747716816597,3.89150484,2569.7,2569.6,16.796]
[1747716816776,3.89150484,2569.7,2569.6,24.524]
[1747716817895,3.89150484,2569.7,2569.6,16.796]
[1747716818101,3.89150484,2569.7,2569.6,24.524]
[1747716820568,3.89150484,2569.7,2569.6,16.796]
[1747716820768,3.89150484,2569.7,2569.6,24.525]
[1747716821271,3.89131611,2569.9,2569.7,8.7667]
[1747716821469,3.89131611,2569.9,2569.8,19.430162]
[1747716821670,3.89131611,2569.9,2569.8,23.33252488]
[1747716821969,3.89131611,2569.9,2569.8,18.98342688]
[1747716822298,3.89131611,2569.9,2569.8,6.25061188]
[1747716822700,3.89092397,2570.1,2569.8,6.25061188]
[1747716822902,3.89092397,2570.1,2569.9,24.776609]
[1747716823100,3.89081501,2570.2,2570.0,2.86789719]
[1747716823276,3.89089918,2570.1,2570.0,2.86789719]
[1747716823598,3.89089918,2570.1,2570.0,14.56]
[1747716823808,3.89089918,2570.1,2570.0,22.271922]
[1747716824697,3.8907609,2570.2,2570.0,22.271922]
[1747716824880,3.89089918,2570.1,2570.0,14.923978]
[1747716825282,3.89089918,2570.1,2570.0,25.731405]
[1747716825480,3.89089918,2570.1,2570.0,15.96726486]
[1747716825684,3.89089918,2570.1,2570.0,29.25873186]
[1747716826780,3.89089918,2570.1,2570.0,26.71983286]
[1747716827690,3.89089918,2570.1,2570.0,13.15983286]
[1747716827971,3.89089918,2570.1,2570.0,18.99308]
[1747716828206,3.89089918,2570.1,2570.0,5.43308]
[1747716828506,3.89089918,2570.1,2570.0,18.373343]
[1747716829504,3.89089918,2570.1,2570.0,17.058058]
[1747716829708,3.89089918,2570.1,2570.0,3.498058]
[1747716829903,3.89089918,2570.1,2570.0,14.893978]
[1747716830404,3.89089918,2570.1,2570.0,9.061978]
[1747716830571,3.89089918,2570.1,2570.0,22.312696]
[1747716831005,3.89089918,2570.1,2570.0,21.583816]
[1747716831602,3.89018028,2570.6,2570.1,0.7998]
[1747716831803,3.89032107,2570.5,2570.3,8.0]
[1747716832010,3.88953714,2571.0,2570.4,18.155535]
[1747716832208,0.7505,2571.1,2570.5,7.698]
[1747716832399,0.7505,2571.1,2570.6,16.796]
[1747716832773,3.88931947,2571.2,2570.7,0.8133]
[1747716833006,3.88885372,2571.5,2570.7,9.177278]
[1747716833210,3.88882606,2571.5,2570.7,9.177278]
[1747716833402,3.88914601,2571.3,2570.7,9.177278]
[1747716834278,3.88900021,2571.4,2570.7,9.177278]
[1747716834479,3.88900021,2571.4,2570.8,3.2062458]
[1747716834776,3.88900021,2571.4,2570.9,5.832]
[1747716835112,3.88900021,2571.4,2571.0,7.697]
[1747716835613,3.88909553,2571.3,2571.0,7.697]
[1747716836308,3.88914738,2571.3,2571.0,7.697]
[1747716836473,3.88903344,2571.4,2571.0,9.33412678]
[1747716837210,4.69524472,2571.6,2571.0,9.33412678]
[1747716837415,3.88896497,2571.4,2571.0,9.33412678]
[1747716837914,3.88901275,2571.4,2571.0,9.33412678]
[1747716838120,3.88893209,2571.4,2571.0,9.33412678]
[1747716839013,3.88904491,2571.4,2571.0,9.33412678]
[1747716840103,0.8066,2571.6,2571.0,9.33412678]
[1747716840310,3.88886474,2571.5,2571.1,1.51661268]
[1747716840627,3.8889514,2571.4,2571.1,1.51661268]
[1747716841493,0.7703,2571.8,2571.1,10.33601268]
[1747716841694,0.02,2571.9,2571.3,3.88900931]
[1747716841894,3.9081797,2571.9,2571.1,10.33601268]
[1747716842113,3.9081797,2571.9,2571.3,8.0]
[1747716842294,3.9081797,2571.9,2571.4,0.7866]
[1747716842295,0.02,2571.9,2571.4,0.7866]
[1747716842491,3.9081813,2571.9,2571.4,0.7866]
[1747716842726,3.9081813,2571.9,2571.5,13.525]
[1747716843027,0.02,2571.9,2571.6,16.791]
[1747716843230,0.02,2571.9,2571.7,3.0316]
[1747716843428,0.02,2571.9,2571.7,13.010386]
[1747716843614,0.02,2571.9,2571.8,7.992721]
[1747716844128,0.02,2571.9,2571.8,16.784321]
[1747716844729,0.02,2571.9,2571.8,14.99448]
[1747716844926,0.02,2571.9,2571.8,18.86504426]
[1747716845298,0.02,2571.9,2571.8,23.5537715]
[1747716845498,2.3044855,2573.3,2571.9,0.8004]
[1747716845703,3.88639803,2573.1,2572.2,0.8004]
[1747716845916,3.90668042,2572.9,2572.3,8.0]
[1747716846098,3.88682087,2572.8,2572.4,1.26880074]
[1747716846408,3.88698147,2572.7,2572.5,7.695]
[1747716846609,3.90669093,2572.9,2572.6,16.79]
[1747716846610,3.88691197,2572.8,2572.6,16.79]
[1747716847006,3.88696699,2572.7,2572.6,16.79]
[1747716847206,4.71076699,2572.7,2572.6,24.483]
[1747716848022,4.96282948,2572.7,2572.6,16.79]
[1747716848210,4.71076699,2572.7,2572.6,24.483]
[1747716852001,3.88696699,2572.7,2572.6,24.483]
[1747716852923,3.88756898,2572.4,2571.8,3.87056426]
[1747716853135,3.88756898,2572.4,2571.9,51.667774]
[1747716853312,0.8157,2572.9,2572.0,43.975774]
[1747716853513,3.88750128,2572.4,2571.9,7.692]
[1747716853927,3.88750128,2572.4,2572.0,43.975774]
[1747716854239,3.88750128,2572.4,2572.1,6.18871023]
[1747716854422,3.88757837,2572.3,2572.1,6.18871023]
[1747716854625,3.88757837,2572.3,2572.2,17.121384]
[1747716854807,3.88748412,2572.4,2572.2,16.898878]
[1747716855010,3.88733428,2572.5,2572.2,16.153119]
[1747716855336,3.88733428,2572.5,2572.3,16.784]
[1747716855635,3.8874203,2572.4,2572.3,22.611]
[1747716855835,3.8874203,2572.4,2572.3,44.10604]
[1747716856554,3.8874203,2572.4,2572.3,25.475]
[1747716857438,3.8874203,2572.4,2572.3,52.112703]
[1747716857643,3.88726919,2572.5,2572.4,0.788]
[1747716857822,3.88726919,2572.5,2572.4,5.59495]
[1747716859047,3.88726919,2572.5,2572.4,4.80695]
[1747716859746,3.88726919,2572.5,2572.4,12.443133]
[1747716860239,3.8874203,2572.4,2572.3,25.784]
[1747716860477,3.8874203,2572.4,2572.3,39.299]
[1747716861173,3.8874203,2572.4,2572.3,40.4216707]
[1747716861943,3.8874203,2572.4,2572.3,62.7658927]
[1747716862168,3.8874203,2572.4,2572.3,59.0232857]
[1747716863178,0.02,2572.9,2572.3,61.80339707]
[1747716863375,3.8874203,2572.4,2572.3,43.20178207]
[1747716863678,3.8874203,2572.4,2572.3,72.60207107]
[1747716863856,3.8874203,2572.4,2572.3,72.22839907]
[1747716864173,3.8874203,2572.4,2572.3,55.95915707]
[1747716864374,3.8874203,2572.4,2572.3,53.1790457]
[1747716864578,3.8874203,2572.4,2572.3,44.0633917]
[1747716866377,3.8874203,2572.4,2572.3,43.0989847]
[1747716866556,3.8874203,2572.4,2572.3,29.5859847]
[1747716866747,3.8874203,2572.4,2572.3,43.0989847]
[1747716867078,0.02,2572.9,2572.3,46.59041686]
[1747716867277,3.88726919,2572.5,2572.4,13.513]
[1747716867574,3.88726919,2572.5,2572.4,19.197599]
[1747716867751,3.88726919,2572.5,2572.4,20.01471071]
[1747716867961,0.02,2572.9,2572.5,0.8262]
[1747716868159,0.02,2572.9,2572.6,0.03886631]
[1747716868348,3.90666485,2572.9,2572.8,8.0]
[1747716868543,3.90666485,2572.9,2572.8,16.1407067]
[1747716869144,0.02,2572.9,2572.8,16.9133067]
[1747716869345,3.90666485,2572.9,2572.8,14.44804837]
[1747716869577,3.90666485,2572.9,2572.8,12.7567177]
[1747716870078,3.90666485,2572.9,2572.8,11.9841177]
[1747716870376,3.90666485,2572.9,2572.8,0.3622707]
[1747716870745,4.71606485,2572.9,2572.8,13.8752707]
[1747716870943,4.71606485,2572.9,2572.8,8.0482707]
[1747716872481,3.90666485,2572.9,2572.8,8.0482707]
[1747716872682,0.02,2573.9,2572.9,0.7502]
[1747716872884,0.02,2573.9,2573.1,0.7502]
[1747716873185,0.02,2573.9,2573.4,0.7502]
[1747716873384,0.02,2573.9,2573.5,35.827236]
[1747716873681,0.02,2573.9,2573.6,15.3298317]
[1747716873887,0.02,2573.9,2573.7,13.254593]
[1747716874062,0.02,2573.9,2573.7,17.15695588]
[1747716874263,0.02,2573.9,2573.8,10.331393]
[1747716874459,3.90515482,2573.9,2573.8,10.331393]
[1747716874661,3.90515482,2573.9,2573.8,2.645393]
[1747716874662,4.69395482,2573.9,2573.8,2.645393]
[1747716874988,3.8856077,2573.6,2573.4,16.779]
[1747716875175,3.88575869,2573.5,2573.4,16.779]
[1747716875395,3.88575869,2573.5,2573.4,39.102836]
[1747716875761,0.02,2573.9,2573.4,41.39609888]
[1747716876096,3.88575869,2573.5,2573.4,29.11926288]
[1747716876274,0.02,2573.9,2573.5,0.36296908]
[1747716876480,3.88533563,2573.8,2573.5,0.36296908]
[1747716876798,0.02,2573.9,2573.6,25.779617]
[1747716876999,3.90521785,2573.9,2573.7,2.6527445]
[1747716877299,3.90521785,2573.9,2573.8,9.730835]
[1747716877597,0.02,2573.9,2573.8,6.42001208]
[1747716878102,3.90515482,2573.9,2573.8,16.97785908]
[1747716878396,3.90515482,2573.9,2573.8,19.97785908]
[1747716878603,3.90515482,2573.9,2573.8,11.04796908]
[1747716878807,3.90515482,2573.9,2573.8,3.36296908]
[1747716878979,3.90515482,2573.9,2573.8,8.04796908]
[1747716879181,3.90515482,2573.9,2573.8,0.36296908]
[1747716879391,3.90515482,2573.9,2573.8,8.04796908]
[1747716879826,3.90515482,2573.9,2573.8,7.685]
[1747716880099,3.90515482,2573.9,2573.8,20.043622]
[1747716880302,3.90515482,2573.9,2573.8,10.1726]
[1747716880507,3.90515482,2573.9,2573.8,10.9367]
[1747716881307,3.90515482,2573.9,2573.8,15.9956]
[1747716882191,3.90515482,2573.9,2573.8,13.508]
[1747716882506,3.90515482,2573.9,2573.8,19.078856]
[1747716882908,3.90515482,2573.9,2573.8,5.570856]
[1747716883070,3.90367469,2574.9,2573.9,0.7641]
[1747716883275,3.88404842,2574.7,2574.0,0.7766]
[1747716883478,3.88404842,2574.7,2574.1,30.884704]
[1747716883700,3.88384999,2574.8,2574.2,3.18728254]
[1747716883876,3.88384999,2574.8,2574.3,51.659774]
[1747716884077,3.83384999,2574.8,2574.4,49.687337]
[1747716884309,0.02,2575.9,2575.0,0.55]
[1747716884610,3.90216683,2575.9,2575.1,13.777]
[1747716884932,3.88228899,2575.8,2575.1,13.777]
[1747716885318,3.88228899,2575.8,2575.2,17.58711458]
[1747716885513,3.88249033,2575.7,2575.2,17.58711458]
[1747716885730,3.88249033,2575.7,2575.3,15.53471146]
[1747716886010,0.02,2575.9,2575.4,13.774]
[1747716886214,3.88274121,2575.5,2575.4,13.774]
[1747716886417,3.88274121,2575.5,2575.4,26.122564]
[1747716886643,3.88274121,2575.5,2575.4,17.291584]
[1747716886832,3.88274121,2575.5,2575.4,17.6738979]
[1747716887027,3.88274121,2575.5,2575.4,15.873684]
[1747716887821,0.7968,2575.9,2575.4,15.873684]
[1747716887822,3.88263554,2575.6,2575.4,15.873684]
[1747716888022,3.88271803,2575.6,2575.4,13.774]
[1747716888222,0.7968,2575.9,2575.4,13.774]
[1747716888223,3.88274121,2575.5,2575.4,13.774]
[1747716888423,3.88274121,2575.5,2575.4,30.910723]
[1747716888625,3.88274121,2575.5,2575.4,33.696744]
[1747716888822,3.88274121,2575.5,2575.4,7.95]
[1747716889005,3.88288621,2575.5,2575.4,7.95]
[1747716889933,3.83288621,2575.5,2575.4,7.95]
[1747716890131,3.88289197,2575.4,2575.3,0.38406175]
[1747716890332,3.88289197,2575.4,2575.3,18.982449]
[1747716890543,3.88289197,2575.4,2575.3,17.970048]
[1747716891148,3.88304275,2575.3,2575.2,16.773]
[1747716891307,4.67754275,2575.3,2575.2,24.722]
[1747716891712,4.67754275,2575.3,2575.2,7.949]
[1747716892165,3.88424936,2574.5,2574.4,16.764]
[1747716892313,3.88424936,2574.5,2574.4,24.713]
[1747716892932,3.88485295,2574.1,2574.0,0.45275429]
[1747716893132,3.88485295,2574.1,2574.0,8.40175429]
[1747716893424,3.88485295,2574.1,2574.0,9.30237918]
[1747716893730,3.88485295,2574.1,2574.0,13.56942489]
[1747716893934,3.88485295,2574.1,2574.0,7.949]
[1747716895264,3.88485295,2574.1,2574.0,22.02428]
[1747716895465,3.88485295,2574.1,2574.0,18.5068]
[1747716895968,3.88500388,2574.0,2573.9,0.38829074]
[1747716896264,3.88500388,2574.0,2573.9,21.771]
[1747716896628,3.88500388,2574.0,2573.9,15.95]
[1747716897477,3.88500388,2574.0,2573.9,16.346903]
[1747716898387,3.88500388,2574.0,2573.9,8.0]
[1747716898692,3.88545673,2573.7,2573.6,16.764]
[1747716898857,3.88545673,2573.7,2573.6,24.714]
[1747716900490,3.88545673,2573.7,2573.6,16.764]
[1747716900695,4.64875673,2573.7,2573.6,16.764]
[1747716900860,4.64875673,2573.7,2573.6,24.715]
[1747716901063,4.64875673,2573.7,2573.6,16.764]
[1747716901281,3.88575869,2573.5,2573.4,7.951]
[1747716901589,3.88621172,2573.2,2573.1,0.02]
[1747716901749,4.70481172,2573.2,2573.1,0.02]
[1747716902758,5.25481172,2573.2,2573.1,0.02]
[1747716902943,5.25206485,2572.9,2572.8,0.2864657]
[1747716903149,3.88696699,2572.7,2572.6,0.60449464]
[1747716903350,5.25236699,2572.7,2572.6,0.60449464]
[1747716903686,5.25236699,2572.7,2571.9,7.953]
[1747716903687,4.70312257,2572.2,2571.9,7.953]
[1747716905185,4.70312257,2572.2,2571.8,24.722]
[1747716906377,4.70312257,2572.2,2571.8,16.769]
[1747716906378,5.25312257,2572.2,2571.8,16.769]
[1747716907280,5.25312257,2572.2,2571.1,0.02]
[1747716907481,5.25312257,2572.2,2571.4,7.955]
[1747716908114,5.25312257,2572.2,2572.1,7.975]
[1747716908115,4.70312257,2572.2,2572.1,7.975]
[1747716908410,3.88772257,2572.2,2572.1,7.975]
[1747716908617,3.88772257,2572.2,2572.1,11.298333]
[1747716909045,3.88666485,2572.9,2572.1,11.298333]
[1747716909270,3.88708233,2572.7,2572.3,8.0]
[1747716909380,4.04564457,2573.0,2572.5,8.0]
[1747716909581,0.159,2573.0,2572.7,8.8012]
[1747716909893,0.159,2573.0,2572.8,10.80672305]
[1747716910215,0.159,2573.0,2572.9,22.35548]
[1747716910531,0.159,2573.0,2572.9,24.71005524]
[1747716910716,0.159,2573.0,2572.9,10.35457524]
[1747716910914,0.159,2573.0,2572.9,50.78207924]
[1747716911220,0.159,2573.0,2572.9,50.74951024]
[1747716912883,0.159,2573.0,2572.9,48.44399724]
[1747716914316,0.159,2573.0,2572.9,30.54075524]
[1747716917921,0.79005355,2575.6,2573.8,0.8244]
[1747716918108,0.7694,2575.6,2574.3,0.8244]
[1747716918307,3.8838026,2574.8,2574.5,8.0]
[1747716918599,3.884189,2574.6,2574.3,0.8244]
[1747716918823,3.884189,2574.6,2574.4,21.680326]
[1747716919128,3.884189,2574.6,2574.5,5.390888]
[1747716919428,3.884189,2574.6,2574.5,5.12001453]
[1747716919805,3.9037312,2574.9,2574.5,5.12001453]
[1747716920126,3.88394764,2574.7,2574.5,3.26045298]
[1747716920330,3.8840985,2574.6,2574.5,0.38096753]
[1747716920510,3.88440024,2574.4,2574.3,6.6484]
[1747716920707,3.88440024,2574.4,2574.3,0.8244]
[1747716920907,3.88440024,2574.4,2574.3,8.9674]
[1747716921236,3.88440024,2574.4,2574.3,13.40780167]
[1747716921447,3.88440024,2574.4,2574.3,21.40780167]
[1747716922214,3.88440024,2574.4,2574.3,8.53521467]
[1747716922413,3.88399854,2574.7,2574.1,5.824]
[1747716922414,3.88481782,2574.2,2574.1,5.823]
[1747716922733,3.88481782,2574.2,2574.1,13.965]
[1747716922905,3.88481782,2574.2,2574.1,9.008003]
[1747716923099,3.88481782,2574.2,2574.1,4.101176]
[1747716923291,3.88481782,2574.2,2574.0,11.253639]
[1747716923496,3.88481782,2574.2,2574.1,13.965]
[1747716923768,3.88481782,2574.2,2574.1,22.273299]
[1747716924240,3.88481782,2574.2,2574.1,11.106473]
[1747716924731,3.88481782,2574.2,2574.1,11.105473]
[1747716925034,3.88481782,2574.2,2574.1,11.49795929]
[1747716926033,3.88481782,2574.2,2574.1,11.105473]
[1747716927305,3.88481782,2574.2,2574.1,14.5589103]
[1747716927840,3.88481782,2574.2,2574.1,11.5934373]
[1747716928138,3.88481782,2574.2,2574.1,26.27668701]
[1747716928842,3.88500388,2574.0,2573.9,24.776]
[1747716929002,3.88500388,2574.0,2573.9,24.916]
[1747716931443,3.88500388,2574.0,2573.9,24.917]
[1747716932436,3.88666485,2572.9,2572.8,0.38376145]
[1747716932643,3.88666485,2572.9,2572.8,29.244699]
[1747716933140,3.88515482,2573.9,2572.9,8.764]
[1747716933301,3.88608256,2573.3,2572.9,8.764]
[1747716933501,3.885977,2573.4,2573.1,8.0]
[1747716933727,3.88606166,2573.3,2573.2,19.286329]
[1747716934041,3.8848115,2574.2,2573.2,19.286329]
[1747716934042,3.88507709,2574.0,2573.4,3.88590969]
[1747716934337,3.88420148,2574.6,2573.6,8.0]
[1747716934538,3.88490775,2574.1,2573.7,5.823]
[1747716934699,3.88415318,2574.6,2574.0,8.0]
[1747716934899,3.88438076,2574.5,2574.2,8.0]
[1747716935124,3.88443914,2574.4,2574.3,11.915557]
[1747716935328,3.88443914,2574.4,2574.3,38.489281]
[1747716935510,3.88443914,2574.4,2574.3,46.123111]
[1747716935918,3.88443914,2574.4,2574.3,44.094421]
[1747716936250,3.88443914,2574.4,2574.3,47.99678388]
[1747716936431,3.90375839,2574.9,2574.3,47.99678388]
[1747716936432,3.88381321,2574.8,2574.4,8.0]
[1747716936621,3.88411558,2574.6,2574.5,0.7539]
[1747716936807,3.88411558,2574.6,2574.5,20.262413]
[1747716937008,3.88411558,2574.6,2574.5,24.16477588]
[1747716938547,3.88411558,2574.6,2574.5,24.55136291]
[1747716938710,3.88485295,2574.1,2574.0,0.7751]
[1747716938904,3.88485295,2574.1,2574.0,22.80940295]
[1747716939224,3.88485295,2574.1,2574.0,22.07323795]
[1747716939427,3.88471543,2574.2,2574.0,22.07323795]
[1747716939750,3.88471543,2574.2,2574.1,19.1767238]
[1747716939915,3.88471543,2574.2,2574.1,9.0526238]
[1747716940116,3.88471543,2574.2,2574.1,14.263]
[1747716940350,3.88471543,2574.2,2574.1,12.13169116]
[1747716940655,3.88471543,2574.2,2574.1,8.36196116]
[1747716940811,3.88460106,2574.3,2574.1,13.57599916]
[1747716941013,3.88442295,2574.4,2574.3,8.0]
[1747716941231,3.88442295,2574.4,2574.3,22.132158]
[1747716941432,3.88442295,2574.4,2574.3,24.38156992]
[1747716941720,3.88442295,2574.4,2574.3,8.50196116]
[1747716942114,3.88442295,2574.4,2574.3,50.42844216]
[1747716942320,3.88442295,2574.4,2574.3,36.37497516]
[1747716943151,3.8842229,2574.6,2574.4,8.0]
[1747716943355,3.8842229,2574.6,2574.5,9.09716]
[1747716943543,3.8842229,2574.6,2574.5,11.65690012]
[1747716943852,3.88395387,2574.7,2574.3,8.50196116]
[1747716943853,3.88440024,2574.4,2574.3,0.36196116]
[1747716944054,3.88440024,2574.4,2574.3,8.50196116]
[1747716944254,3.88425161,2574.5,2574.3,30.138115]
[1747716944561,0.02,2574.9,2574.4,33.530923]
[1747716944723,3.88423337,2574.6,2574.4,8.0]
[1747716944919,3.88423337,2574.6,2574.5,16.809058]
[1747716945132,3.88424936,2574.5,2574.4,8.0]
[1747716945338,3.88424936,2574.5,2574.4,16.53817417]
[1747716945869,3.88424936,2574.5,2574.4,8.36217417]
[1747716946019,3.88424936,2574.5,2574.4,22.35917417]
[1747716949655,3.88424936,2574.5,2574.4,0.36217417]
[1747716949860,3.88424936,2574.5,2574.4,8.53817417]
[1747716950918,3.88424936,2574.5,2574.4,0.20317417]
[1747716951123,4.67064936,2574.5,2574.4,0.20317417]
[1747716951645,3.88424936,2574.5,2574.4,8.37917417]
[1747716952536,3.88424936,2574.5,2574.4,19.42957917]
[1747716952859,3.88424936,2574.5,2574.4,19.33636517]
[1747716953066,3.88424936,2574.5,2574.4,8.37917417]
[1747716953262,3.88424936,2574.5,2574.4,15.53743517]
[1747716955468,3.88424936,2574.5,2574.4,13.82425117]
[1747716956257,3.88424936,2574.5,2574.4,12.38227117]
[1747716956581,3.88424936,2574.5,2574.4,8.37917417]
[1747716956881,4.71424936,2574.5,2574.4,8.37917417]
[1747716957778,4.71424936,2574.5,2574.4,8.176]
[1747716959067,3.88424936,2574.5,2574.4,8.176]
[1747716960555,3.88424936,2574.5,2574.4,11.442783]
[1747716960762,3.88424936,2574.5,2574.4,8.176]
[1747716962287,4.64111514,2573.9,2573.5,0.60449464]
[1747716962448,4.64111514,2573.9,2572.3,1.51254552]
[1747716962449,3.88590969,2573.4,2572.3,1.51254552]
[1747716962645,4.64256485,2572.9,2572.3,1.51254552]
[1747716962874,4.64256485,2572.9,2572.7,8.176]
[1747716963549,4.64256485,2572.9,2572.3,1.51254552]
[1747716963884,4.64256485,2572.9,2572.3,9.69054552]
[1747716963885,5.19256485,2572.9,2572.3,9.69054552]
[1747716965766,9.27756485,2572.9,2572.3,1.51254552]
[1747716966300,5.2481203,2572.4,2572.3,1.51254552]
[1747716967088,4.6981203,2572.4,2572.3,1.51254552]
[1747716967685,3.88772257,2572.2,2571.8,8.178]
[1747716968057,4.66382257,2572.2,2571.8,8.178]
[1747716970187,4.66382257,2572.2,2572.1,0.34455293]
[1747716971487,4.66382257,2572.2,2572.1,0.02]
[1747716975490,3.88772257,2572.2,2572.1,0.02]
[1747716976058,3.88772257,2572.2,2572.1,0.788]
[1747716976270,3.88772257,2572.2,2572.1,9.844742]
[1747716976474,3.88772257,2572.2,2572.1,6.323991]
[1747716978108,10.26,2573.2,2572.1,6.323991]
[1747716978268,3.88700875,2572.7,2572.3,0.8007]
[1747716978467,3.8860607,2573.3,2572.4,33.785047]
[1747716978670,3.88696959,2572.7,2572.5,20.2405747]
[1747716978873,3.88696959,2572.7,2572.6,15.097758]
[1747716979102,3.88696959,2572.7,2572.6,11.692336]
[1747716979813,3.88696959,2572.7,2572.6,10.254798]
[1747716979976,3.88696959,2572.7,2572.6,9.622068]
[1747716981480,0.7528,2573.4,2572.7,8.0]
[1747716981680,0.7597,2574.1,2572.9,8.8029]
[1747716981884,3.88555468,2573.7,2573.2,0.8029]
[1747716982711,3.88567081,2573.6,2573.2,0.8029]
[1747716982916,3.88536693,2573.8,2573.2,0.8029]
[1747716983091,0.7597,2574.4,2573.4,0.8176]
[1747716983412,3.88470204,2574.2,2573.5,30.923]
[1747716983623,3.88521503,2573.9,2573.5,30.923]
[1747716983791,3.88512843,2574.0,2573.6,8.0]
[1747716984116,3.88512843,2574.0,2573.8,0.8176]
[1747716984323,3.88512843,2574.0,2573.8,8.8176]
[1747716984525,3.88511473,2574.0,2573.8,8.8176]
[1747716984727,3.88515482,2573.9,2573.8,8.8176]
[1747716984913,3.88515482,2573.9,2573.8,27.453145]
[1747716985228,4.04614079,2574.1,2573.8,30.5876895]
[1747716985524,4.0461182,2574.1,2573.9,20.399735]
[1747716985829,0.16124934,2574.1,2574.0,18.368175]
[1747716986016,4.04610229,2574.1,2574.0,15.313243]
[1747716986525,4.04610229,2574.1,2574.0,23.313243]
[1747716986820,4.04610229,2574.1,2574.0,26.83978175]
[1747716987525,0.16124934,2574.1,2574.0,26.83978175]
[1747716987826,0.16124934,2574.1,2574.0,27.61688175]
[1747716988023,4.04610229,2574.1,2574.0,8.314]
[1747716988187,3.88485295,2574.1,2574.0,8.314]
[1747716989025,3.88485295,2574.1,2574.0,13.439567]
[1747716989522,3.88485295,2574.1,2574.0,12.223307]
[1747716989727,3.88485295,2574.1,2574.0,11.486207]
[1747716989909,3.88394764,2574.7,2574.0,13.2172277]
[1747716990111,3.88379679,2574.8,2574.0,10.0450207]
[1747716990317,3.88485295,2574.1,2574.0,8.314]
[1747716990518,3.88485295,2574.1,2574.0,14.390359]
[1747716990817,3.88485295,2574.1,2574.0,12.632267]
[1747716991513,3.88485295,2574.1,2574.0,20.632267]
[1747716991713,3.88485295,2574.1,2574.0,22.81935331]
[1747716993494,3.88485295,2574.1,2574.0,20.632267]
[1747716993699,3.88485295,2574.1,2574.0,18.486036]
[1747716993895,3.88485295,2574.1,2574.0,10.172036]
[1747716994100,3.88485295,2574.1,2574.0,11.345751]
[1747716994630,3.88485295,2574.1,2574.0,8.312]
[1747716995117,3.88485295,2574.1,2574.0,10.885767]
[1747716995709,3.88485295,2574.1,2574.0,8.312]
[1747716996332,3.88530577,2573.8,2573.6,8.0]
[1747716996632,3.88545673,2573.7,2573.6,13.823]
[1747716996837,3.88545673,2573.7,2573.6,24.545161]
[1747716997232,3.8856077,2573.6,2573.5,24.781]
[1747716997434,3.8856077,2573.6,2573.5,25.092]
[1747716998326,3.8856077,2573.6,2573.5,16.781]
[1747716998511,3.8856077,2573.6,2573.5,25.092]
[1747716999036,3.88666485,2572.9,2572.8,0.813]
[1747716999207,3.88666485,2572.9,2572.8,28.133661]
[1747716999532,3.88666485,2572.9,2572.8,27.700668]
[1747716999738,3.88652285,2573.0,2572.8,27.700668]
[1747716999739,3.88651966,2573.0,2572.8,27.700668]
[1747716999935,3.88651966,2573.0,2572.9,8.748001]
[1747717000126,3.88651966,2573.0,2572.9,4.217303]